fUST/lending_fUST_20260304
["ID","MTS","AMOUNT","RATE_DAILY","PERIOD"]
[407635366,1772579439891,-250.0,9.994e-05,2]
[407635367,1772579439901,-500.0,9.994e-05,2]
[407635368,1772579439916,-250.0,9.994e-05,2]
[407635370,1772579439925,-250.0,9.994e-05,2]
[407635371,1772579439934,-500.0,9.994e-05,2]
[407635372,1772579439943,-500.0,9.994e-05,2]
[407635373,1772579439951,-500.0,9.994e-05,2]
[407635375,1772579439961,-2230.315306,9.994e-05,2]
[407635376,1772579439970,-500.0,9.994e-05,2]
[407635377,1772579439978,-250.0,9.994e-05,2]
[407635378,1772579439987,-250.0,9.994e-05,2]
[407635379,1772579439997,-250.0,9.994e-05,2]
[407635380,1772579440007,-250.0,9.994e-05,2]
[407635381,1772579440017,-500.0,9.994e-05,2]
[407635382,1772579440027,-250.0,9.994e-05,2]
[407635383,1772579440037,-250.0,9.994e-05,2]
[407635384,1772579440047,-500.0,9.994e-05,2]
[407635385,1772579440057,-250.0,9.994e-05,2]
[407635386,1772579440067,-250.0,9.994e-05,2]
[407635387,1772579440076,-250.0,9.994e-05,2]
[407635388,1772579440085,-396.10831666,9.994e-05,2]
[407635389,1772579440095,-500.0,9.994e-05,2]
[407635390,1772579440104,-250.0,9.994e-05,2]
[407635391,1772579440114,-250.0,9.994e-05,2]
[407635392,1772579440124,-500.0,9.994e-05,2]
[407635393,1772579440133,-250.0,9.994e-05,2]
[407635394,1772579440142,-211.14964245,9.994e-05,2]
[407635395,1772579440615,-38.85035755,9.994e-05,2]
[407635396,1772579440626,-250.0,9.994e-05,2]
[407635397,1772579440640,-250.0,9.994e-05,2]
[407635398,1772579440650,-250.0,9.994e-05,2]
[407635399,1772579440659,-250.0,9.994e-05,2]
[407635400,1772579440668,-250.0,9.994e-05,2]
[407635401,1772579440679,-250.0,9.994e-05,2]
[407635402,1772579440688,-250.0,9.994e-05,2]
[407635403,1772579440698,-250.0,9.994e-05,2]
[407635404,1772579440711,-250.0,9.994e-05,2]
[407635405,1772579440720,-218.99003596,9.994e-05,2]
[407635406,1772579440732,-9.53823958,9.994e-05,2]
[407635407,1772579440742,-250.0,9.994e-05,2]
[407635408,1772579440751,-250.0,9.994e-05,2]
[407635409,1772579440759,-156.587,9.994e-05,2]
[407635410,1772579440768,-231.50647155,9.994e-05,2]
[407635411,1772579440777,-3029.6373114,9.999e-05,2]
[407635412,1772579440786,-1184.6076044,9.999e-05,2]
[407635413,1772579440795,-349.80466525,9.999e-05,2]
[407635414,1772579440804,-5140.32217516,0.0001,2]
[407635415,1772579440815,-781.08495,0.0001,2]
[407635416,1772579441543,-351.0,9.949e-05,2]
[407635417,1772579441553,-2300.87350466,0.0001,2]
[407635418,1772579441564,-1175.66510949,0.0001,2]
[407635419,1772579441575,-2717.52005585,0.0001,2]
[407635432,1772579443074,-351.0,9.949e-05,2]
[407635433,1772579443084,-338.0,9.949e-05,2]
[407635434,1772579443094,-180.01369185,0.0001,2]
[407635435,1772579443106,-415.20624435,0.0001,2]
[407635436,1772579443118,-1504.3502,0.0001,2]
[407635437,1772579443134,-421.537,0.0001,2]
[407635438,1772579443197,-689.0,9.949e-05,2]
[407635439,1772579443207,-351.0,9.949e-05,2]
[407635440,1772579443216,-13144.76249413,0.0001,2]
[407635441,1772579443227,-13915.214329,0.0001,2]
[407635442,1772579443237,-360.00000001,0.0001,2]
[407635443,1772579443246,-1342.51766543,0.0001,2]
[407635444,1772579443255,-223.99089557,0.0001,2]
[407635445,1772579443264,-437.84325712,0.0001,2]
[407635446,1772579443274,-338.0,0.0001,2]
[407635447,1772579443284,-338.0,0.0001,2]
[407635448,1772579443551,-338.0,0.0001,2]
[407635449,1772579443561,-338.0,0.0001,2]
[407635450,1772579443570,-338.0,0.0001,2]
[407635451,1772579443579,-338.0,0.0001,2]
[407635452,1772579443589,-338.0,0.0001,2]
[407635453,1772579443598,-338.0,0.0001,2]
[407635454,1772579443608,-338.0,0.0001,2]
[407635455,1772579443617,-338.0,0.0001,2]
[407635456,1772579443631,-338.0,0.0001,2]
[407635457,1772579443640,-338.0,0.0001,2]
[407635458,1772579443650,-338.0,0.0001,2]
[407635459,1772579443660,-338.0,0.0001,2]
[407635460,1772579443670,-338.0,0.0001,2]
[407635461,1772579443680,-338.0,0.0001,2]
[407635462,1772579443689,-338.0,0.0001,2]
[407635463,1772579443699,-338.0,0.0001,2]
[407635464,1772579443708,-338.0,0.0001,2]
[407635465,1772579443718,-104.82369134,0.0001,2]
[407635466,1772579443730,-233.17630866,0.0001,2]
[407635467,1772579443739,-338.0,0.0001,2]
[407635468,1772579443749,-235.81496688,0.0001,2]
[407635469,1772579443760,-115.18503312,0.0001,2]
[407635470,1772579443769,-338.0,0.0001,2]
[407635471,1772579443779,-351.0,0.0001,2]
[407635472,1772579443788,-338.0,0.0001,2]
[407635473,1772579443798,-351.0,0.0001,2]
[407635474,1772579443808,-338.0,0.0001,2]
[407635475,1772579443817,-351.0,0.0001,2]
[407635476,1772579443827,-338.0,0.0001,2]
[407635477,1772579443836,-351.0,0.0001,2]
[407635478,1772579443845,-338.0,0.0001,2]
[407635479,1772579443855,-351.0,0.0001,2]
[407635480,1772579443864,-338.0,0.0001,2]
[407635481,1772579443874,-689.0,0.0001,2]
[407635482,1772579443883,-338.0,0.0001,2]
[407635483,1772579443892,-351.0,0.0001,2]
[407635484,1772579443901,-689.0,0.0001,2]
[407635485,1772579443911,-338.0,0.0001,2]
[407635486,1772579443920,-257.31883335,0.0001,2]
[407635488,1772579446177,-338.0,9.949e-05,2]
[407635489,1772579446187,-93.68116665,0.0001,2]
[407635490,1772579446197,-689.0,0.0001,2]
[407635491,1772579446207,-351.0,0.0001,2]
[407635492,1772579446216,-338.0,0.0001,2]
[407635493,1772579446225,-689.0,0.0001,2]
[407635494,1772579446236,-351.0,0.0001,2]
[407635495,1772579446245,-689.0,0.0001,2]
[407635496,1772579446255,-338.0,0.0001,2]
[407635497,1772579446266,-351.0,0.0001,2]
[407635498,1772579446275,-689.0,0.0001,2]
[407635499,1772579446285,-351.0,0.0001,2]
[407635500,1772579446297,-338.0,0.0001,2]
[407635501,1772579446307,-689.0,0.0001,2]
[407635502,1772579446317,-351.0,0.0001,2]
[407635503,1772579446327,-338.0,0.0001,2]
[407635504,1772579446336,-689.0,0.0001,2]
[407635505,1772579446346,-351.0,0.0001,2]
[407635506,1772579446355,-351.0,0.0001,2]
[407635507,1772579446364,-338.0,0.0001,2]
[407635508,1772579446374,-351.0,0.0001,2]
[407635509,1772579446383,-689.0,0.0001,2]
[407635510,1772579446395,-338.0,0.0001,2]
[407635511,1772579446404,-351.0,0.0001,2]
[407635512,1772579446415,-689.0,0.0001,2]
[407635513,1772579446426,-338.0,0.0001,2]
[407635514,1772579446437,-351.0,0.0001,2]
[407635515,1772579446447,-368.83609237,0.0001,2]
[407635516,1772579446457,-689.0,0.0001,2]
[407635517,1772579446466,-351.0,0.0001,2]
[407635518,1772579446476,-351.0,0.0001,2]
[407635519,1772579446486,-689.0,0.0001,2]
[407635520,1772579446495,-351.0,0.0001,2]
[407635521,1772579446505,-689.0,0.0001,2]
[407635522,1772579446515,-178.0,0.0001,2]
[407635523,1772579446525,-351.0,0.0001,2]
[407635524,1772579446534,-689.0,0.0001,2]
[407635525,1772579446543,-178.0,0.0001,2]
[407635526,1772579446553,-351.0,0.0001,2]
[407635527,1772579446563,-351.0,0.0001,2]
[407635528,1772579446573,-689.0,0.0001,2]
[407635529,1772579446585,-179.68926167,0.0001,2]
[407635530,1772579446595,-383.60251558,0.0001,2]
[407635531,1772579446609,-689.0,0.0001,2]
[407635532,1772579446620,-689.0,0.0001,2]
[407635533,1772579446632,-689.0,0.0001,2]
[407635534,1772579446642,-689.0,0.0001,2]
[407635535,1772579446652,-689.0,0.0001,2]
[407635536,1772579446663,-689.0,0.0001,2]
[407635537,1772579446673,-689.0,0.0001,2]
[407635538,1772579446683,-689.0,0.0001,2]
[407635539,1772579446693,-689.0,0.0001,2]
[407635540,1772579446705,-689.0,0.0001,2]
[407635541,1772579446715,-689.0,0.0001,2]
[407635542,1772579446725,-689.0,0.0001,2]
[407635543,1772579446735,-689.0,0.0001,2]
[407635544,1772579446745,-689.0,0.0001,2]
[407635545,1772579446755,-689.0,0.0001,2]
[407635546,1772579446764,-689.0,0.0001,2]
[407635547,1772579446775,-689.0,0.0001,2]
[407635548,1772579446784,-689.0,0.0001,2]
[407635549,1772579446794,-689.0,0.0001,2]
[407635550,1772579446803,-689.0,0.0001,2]
[407635551,1772579446813,-689.0,0.0001,2]
[407635552,1772579446823,-689.0,0.0001,2]
[407635553,1772579446833,-689.0,0.0001,2]
[407635554,1772579446843,-689.0,0.0001,2]
[407635555,1772579446852,-689.0,0.0001,2]
[407635556,1772579446862,-689.0,0.0001,2]
[407635557,1772579446872,-689.0,0.0001,2]
[407635558,1772579446882,-689.0,0.0001,2]
[407635559,1772579446892,-689.0,0.0001,2]
[407635560,1772579446902,-689.0,0.0001,2]
[407635561,1772579446912,-689.0,0.0001,2]
[407635562,1772579446922,-689.0,0.0001,2]
[407635563,1772579446932,-689.0,0.0001,2]
[407635564,1772579446943,-689.0,0.0001,2]
[407635565,1772579446952,-689.0,0.0001,2]
[407635566,1772579446962,-823.20451883,0.0001,2]
[407635567,1772579446972,-180.79073258,0.0001,2]
[407635568,1772579446982,-151.0,0.0001,2]
[407635569,1772579446992,-151.0,0.0001,2]
[407635570,1772579447001,-151.0,0.0001,2]
[407635571,1772579447011,-151.0,0.0001,2]
[407635572,1772579447021,-151.0,0.0001,2]
[407635573,1772579447030,-151.0,0.0001,2]
[407635574,1772579447040,-151.0,0.0001,2]
[407635575,1772579447050,-151.0,0.0001,2]
[407635576,1772579447061,-151.0,0.0001,2]
[407635577,1772579447071,-151.0,0.0001,2]
[407635578,1772579447081,-151.0,0.0001,2]
[407635579,1772579447091,-151.0,0.0001,2]
[407635580,1772579447101,-151.0,0.0001,2]
[407635581,1772579447114,-151.0,0.0001,2]
[407635582,1772579447124,-151.0,0.0001,2]
[407635583,1772579447134,-151.0,0.0001,2]
[407635584,1772579447144,-151.0,0.0001,2]
[407635585,1772579447154,-151.0,0.0001,2]
[407635586,1772579447164,-151.0,0.0001,2]
[407635587,1772579447174,-151.0,0.0001,2]
[407635588,1772579447184,-517.67402127,0.0001,2]
[407635589,1772579447194,-166.0,0.0001,2]
[407635590,1772579447203,-166.0,0.0001,2]
[407635591,1772579447213,-166.0,0.0001,2]
[407635592,1772579447223,-213.43763817,0.0001,2]
[407635593,1772579447232,-2030.296672,0.00010049,2]
[407635594,1772579447242,-3496.11158221,0.00010094,2]
[407635595,1772579447254,-247.82887145,0.00010104,2]
[407635596,1772579447264,-213.43763813,0.0001014,2]
[407635597,1772579447275,-351.0,0.00010178,2]
[407635598,1772579447285,-351.0,0.00010178,2]
[407635599,1772579447295,-151.0,0.00010178,2]
[407635600,1772579447305,-351.0,0.00010178,2]
[407635601,1772579447315,-166.0,0.00010178,2]
[407635602,1772579447325,-151.0,0.00010178,2]
[407635603,1772579447335,-151.0,0.00010178,2]
[407635604,1772579447344,-151.0,0.00010178,2]
[407635605,1772579447354,-151.0,0.00010178,2]
[407635606,1772579447365,-151.0,0.00010178,2]
[407635607,1772579447375,-151.0,0.00010178,2]
[407635608,1772579447384,-351.0,0.00010178,2]
[407635609,1772579447394,-169.11630309,0.00010178,2]
[407635610,1772579447404,-456.74754315,0.00010178,2]
[407635611,1772579447413,-162.0,0.00010178,2]
[407635612,1772579447422,-300.0,0.00010199,2]
[407635613,1772579447432,-300.0,0.00010199,2]
[407635614,1772579447441,-300.0,0.00010199,2]
[407635615,1772579447453,-300.0,0.00010199,2]
[407635616,1772579447464,-300.0,0.00010199,2]
[407635617,1772579447473,-300.0,0.00010199,2]
[407635618,1772579447483,-300.0,0.00010199,2]
[407635619,1772579447493,-300.0,0.00010199,2]
[407635620,1772579447503,-300.0,0.00010199,2]
[407635621,1772579447512,-300.0,0.00010199,2]
[407635622,1772579447522,-300.0,0.00010199,2]
[407635623,1772579447532,-300.0,0.00010199,2]
[407635624,1772579447542,-300.0,0.00010199,2]
[407635625,1772579447552,-300.0,0.00010199,2]
[407635626,1772579447562,-300.0,0.00010199,2]
[407635627,1772579447572,-600.0,0.00010199,2]
[407635628,1772579447583,-1706.87777964,0.00010242,2]
[407635629,1772579447592,-1389.0,0.00010331,2]
[407635630,1772579447602,-638.0,0.00010331,2]
[407635631,1772579447612,-2309.713,0.00010331,2]
[407635632,1772579447622,-730.0,0.00010331,2]
[407635633,1772579447636,-580.656,0.00010331,2]
[407635634,1772579447645,-213.43763813,0.00010379,2]
[407635635,1772579447656,-3402.967579,0.00010396,2]
[407635636,1772579447667,-150.0,0.00010437,2]
[407635637,1772579447677,-150.549,0.00010437,2]
[407635638,1772579447686,-150.0,0.00010437,2]
[407635639,1772579447698,-265.716,0.00010437,2]
[407635640,1772579447707,-578.20924308,0.00010542,2]
[407635641,1772579447715,-2312.83697232,0.00010542,2]
[407635642,1772579447724,-162.380719,0.00010542,2]
[407635643,1772579447733,-596.49,0.000106,2]
[407635644,1772579447742,-213.43763813,0.00010619,2]
[407635645,1772579447753,-566.76857269,0.000107,2]
[407635646,1772579447762,-500.0,0.000107,2]
[407635647,1772579447772,-940.27580774,0.000107,2]
[407635648,1772579447782,-500.0,0.000107,2]
[407635649,1772579447791,-3402.967579,0.00010816,2]
[407635650,1772579447801,-500.0,0.00010834,2]
[407635651,1772579447811,-198.432,0.00010845,2]
[407635652,1772579447820,-213.43763813,0.00010858,2]
[407635653,1772579447830,-1014.45843939,0.000109,5]
[407635654,1772579558190,159.494274,9.063e-05,2]
[407635655,1772579558377,159.494274,9.063e-05,61]
[407635656,1772579558541,159.494274,9.063e-05,120]
[407635660,1772580003755,173.9,6.9e-05,2]
[407635661,1772580004039,173.9,8.2e-05,2]
[407635662,1772580004323,173.9,9.5e-05,2]
[407635687,1772580632035,-300.0,0.00010426,2]
[407635689,1772580632046,-109.34990155,0.00010426,2]
[407635691,1772580632058,-1090.65009845,0.00010426,2]
[407635693,1772580632069,-566.0,0.00010426,2]
[407635695,1772580632079,-499.35330134,0.00010426,2]
[407635697,1772580632089,-1389.0,0.00010427,2]
[407635699,1772580632099,-1533.531815,0.00010427,2]
[407635758,1772580632677,-597.0,0.00010427,2]
[407635760,1772580632690,-55.468185,0.00010427,2]
[407635763,1772580632699,-638.0,0.00010427,2]
[407635764,1772580632710,-730.0,0.00010427,2]
[407635766,1772580632719,-484.157,0.00010427,2]
[407635769,1772580632729,-1250.37568954,0.00010641,2]
[407635771,1772580632739,-277.0825799,0.00010707,2]
[407635945,1772580638285,-1583.86677274,0.00010707,2]
[407635946,1772580638297,-3374.33876893,0.00010707,2]
[407635947,1772580638307,-8238.21049879,0.000108,2]
[407635951,1772580640768,-555.49453514,0.000108,2]
[407635952,1772580640780,-1178.52779707,0.000108,2]
[407635954,1772580643697,-1655.48621951,0.000108,2]
[407635956,1772580644350,-570.0,0.000108,2]
[407635957,1772580644362,-547.55088979,0.000108,2]
[407635958,1772580644372,-2138.00707277,0.000108,2]
[407635959,1772580644452,-688.20655213,0.000108,2]
[407635965,1772580646204,-6178.44668816,0.000108,2]
[407635966,1772580646216,-472.88562415,0.000108,2]
[407635967,1772580646225,-863.23870876,0.000108,2]
[407635968,1772580646235,-1948.67276247,0.000108,2]
[407635969,1772580646244,-1632.66965723,0.000108,2]
[407635970,1772580646254,-1154.38,0.00010832,5]
[407635971,1772580646264,-351.0,0.000109,2]
[407635972,1772580646274,-349.98963509,0.00010937,2]
[407635973,1772580646377,-1854.01683468,0.00010937,2]
[407635974,1772580646386,-168.3888056,0.00010951,2]
[407635975,1772580646395,-168.3888056,0.00010951,2]
[407635976,1772580646405,-174.61919141,0.00010951,2]
[407635977,1772580646414,-181.08010149,0.00010951,2]
[407635978,1772580646424,-187.78006525,0.00010951,2]
[407635979,1772580646433,-194.72792766,0.00010951,2]
[407635980,1772580646443,-201.93286099,0.00010951,2]
[407635981,1772580646453,-209.40437684,0.00010951,2]
[407635982,1772580646463,-217.15233878,0.00010951,2]
[407635983,1772580646472,-151.0,0.00010951,2]
[407635984,1772580646481,-156.587,0.00010951,2]
[407635985,1772580646491,-225.18697532,0.00010951,2]
[407635986,1772580646499,-151.0,0.00010951,2]
[407635987,1772580646509,-233.51889341,0.00010951,2]
[407635988,1772580646519,-151.0,0.00010951,2]
[407635989,1772580646528,-242.15909246,0.00010951,2]
[407635990,1772580646537,-151.0,0.00010951,2]
[407635991,1772580646547,-251.11897888,0.00010951,2]
[407635992,1772580646556,-557.5788265,0.00010951,2]
[407635993,1772580646565,-260.4103811,0.00010951,2]
[407635994,1772580646575,-270.0455652,0.00010951,2]
[407635995,1772580646584,-280.03725112,0.00010951,2]
[407635996,1772580646598,-290.39862941,0.00010951,2]
[407635997,1772580646608,-301.1433787,0.00010951,2]
[407635998,1772580646618,-2230.315306,0.00010951,2]
[407635999,1772580646629,-160.0,0.00010952,3]
[407636000,1772580646639,-3.44780454,0.00010957,2]
[407636001,1772580833802,-300.0,0.00010398,2]
[407636002,1772580833826,-1389.0,0.00010399,2]
[407636003,1772580833848,-2186.0,0.00010399,2]
[407636004,1772580833872,-525.866,0.00010399,2]
[407636005,1772580833897,-730.0,0.00010399,2]
[407636006,1772580833920,-638.0,0.00010399,2]
[407636007,1772580833945,-375.12216432,0.00010692,2]
[407636008,1772580833968,-261.02,0.000107,5]
[407636009,1772580833992,-786.279839,0.00010779,2]
[407636010,1772580834019,-500.0,0.00010799,2]
[407636011,1772580834047,-500.0,0.00010799,2]
[407636012,1772580834071,-248.76559404,0.00010799,2]
[407636013,1772580834096,-566.35123167,0.00010799,2]
[407636014,1772580834120,-500.0,0.00010799,2]
[407636015,1772580834155,-833.58379303,0.000108,2]
[407636016,1772580834191,-160.78192613,0.00010951,2]
[407636017,1772580834230,-168.3888056,0.00010951,2]
[407636018,1772580834271,-174.61919141,0.00010951,2]
[407636019,1772580834309,-181.08010149,0.00010951,2]
[407636020,1772580834345,-187.78006525,0.00010951,2]
[407636021,1772580834381,-194.72792766,0.00010951,2]
[407636022,1772580834420,-201.93286099,0.00010951,2]
[407636023,1772580834452,-156.587,0.00010951,2]
[407636024,1772580834490,-209.40437684,0.00010951,2]
[407636025,1772580834522,-217.15233878,0.00010951,2]
[407636026,1772580834555,-225.18697532,0.00010951,2]
[407636027,1772580834592,-233.51889341,0.00010951,2]
[407636028,1772580834626,-557.5788265,0.00010951,2]
[407636029,1772580834661,-242.15909246,0.00010951,2]
[407636030,1772580834694,-251.11897888,0.00010951,2]
[407636031,1772580834726,-2230.315306,0.00010951,2]
[407636032,1772580834758,-260.4103811,0.00010951,2]
[407636033,1772580834792,-270.0455652,0.00010951,2]
[407636034,1772580834824,-280.03725112,0.00010951,2]
[407636035,1772580834857,-290.39862941,0.00010951,2]
[407636036,1772580834892,-301.1433787,0.00010951,2]
[407636037,1772580834922,-893.02,0.00010957,2]
[407636038,1772580834952,-192.484,0.00010957,2]
[407636039,1772580834981,-360.51047845,0.00010957,2]
[407636040,1772580835010,-500.0,0.00010958,2]
[407636041,1772580835043,-765.78,0.00010958,2]
[407636042,1772580835075,-500.0,0.00010958,2]
[407636043,1772580835109,-500.0,0.00010958,2]
[407636044,1772580835144,-500.0,0.00010958,2]
[407636045,1772580835175,-500.0,0.00010958,2]
[407636046,1772580835206,-500.0,0.00010958,2]
[407636047,1772580835240,-243.13443358,0.00010958,2]
[407636048,1772580835271,-500.0,0.00010958,2]
[407636049,1772580835305,-1038.0,0.00010958,2]
[407636050,1772580835338,-609.68,0.00010958,2]
[407636051,1772580835369,-685.59,0.00010958,2]
[407636052,1772580835400,-574.23,0.00010958,2]
[407636053,1772580835434,-637.61,0.00010958,2]
[407636054,1772580835467,-500.0,0.00010958,2]
[407636055,1772580835500,-500.0,0.00010958,2]
[407636056,1772580835530,-500.0,0.00010958,2]
[407636057,1772580835560,-500.0,0.00010958,2]
[407636058,1772580835594,-500.0,0.00010958,2]
[407636059,1772580835627,-500.0,0.00010958,2]
[407636060,1772580835659,-500.0,0.00010958,2]
[407636061,1772580835691,-500.0,0.00010958,2]
[407636062,1772580835723,-1451.22,0.00010958,2]
[407636063,1772580835755,-1732.21,0.00010958,2]
[407636064,1772580835790,-500.0,0.00010958,2]
[407636065,1772580835819,-1165.2,0.00010958,2]
[407636066,1772580835849,-1165.2,0.00010958,2]
[407636067,1772580835879,-1165.2,0.00010958,2]
[407636068,1772580835909,-1165.2,0.00010958,2]
[407636069,1772580835940,-1165.2,0.00010958,2]
[407636070,1772580835971,-1165.2,0.00010958,2]
[407636071,1772580836001,-524.22,0.00010958,2]
[407636072,1772580836032,-1165.2,0.00010958,2]
[407636073,1772580836061,-500.0,0.00010958,2]
[407636074,1772580836092,-1165.2,0.00010958,2]
[407636075,1772580836122,-1292.24,0.00010958,2]
[407636076,1772580836152,-1165.2,0.00010958,2]
[407636077,1772580836185,-1165.2,0.00010958,2]
[407636078,1772580836216,-500.0,0.00010958,2]
[407636079,1772580836248,-1165.2,0.00010958,2]
[407636080,1772580836278,-1165.2,0.00010958,2]
[407636081,1772580836309,-1165.2,0.00010958,2]
[407636082,1772580836339,-1165.2,0.00010958,2]
[407636083,1772580836364,-1165.2,0.00010958,2]
[407636084,1772580836389,-1165.2,0.00010958,2]
[407636085,1772580836412,-1165.2,0.00010958,2]
[407636086,1772580836435,-1165.2,0.00010958,2]
[407636087,1772580836458,-1165.2,0.00010958,2]
[407636088,1772580836484,-1165.2,0.00010958,2]
[407636089,1772580836508,-1165.2,0.00010958,2]
[407636090,1772580836968,-1165.2,0.00010958,2]
[407636091,1772580836991,-1165.2,0.00010958,2]
[407636092,1772580837013,-1165.36598984,0.00010958,2]
[407636093,1772580837040,-500.0,0.00010958,2]
[407636094,1772580837063,-820.66,0.00010958,2]
[407636095,1772580837085,-500.0,0.00010958,2]
[407636096,1772580837108,-500.0,0.00010958,2]
[407636097,1772580837130,-898.04,0.00010958,2]
[407636098,1772580837152,-500.0,0.00010958,2]
[407636099,1772580837174,-523.58,0.00010958,2]
[407636100,1772580837196,-752.32,0.00010958,2]
[407636101,1772580837217,-561.25864091,0.00010958,2]
[407636102,1772580837240,-1215.19,0.00010958,2]
[407636103,1772580837263,-500.0,0.00010958,2]
[407636104,1772580837289,-531.78,0.00010958,2]
[407636105,1772580837314,-500.0,0.00010958,2]
[407636106,1772580837337,-280.57046294,0.00010958,2]
[407636107,1772580837359,-511.44,0.00010958,2]
[407636108,1772580837384,-500.0,0.00010958,2]
[407636109,1772580837405,-518.2180332,0.00010958,2]
[407636110,1772580837429,-265.7316326,0.00010958,2]
[407636111,1772580837451,-725.31,0.00010958,2]
[407636112,1772580837471,-500.0,0.00010958,2]
[407636113,1772580837493,-1855.95,0.00010958,2]
[407636114,1772580837514,-522.70072759,0.00010958,2]
[407636115,1772580837535,-500.0,0.00010958,2]
[407636116,1772580837557,-1206.02,0.00010958,2]
[407636117,1772580837578,-500.0,0.00010958,2]
[407636118,1772580837599,-500.0,0.00010958,2]
[407636119,1772580837620,-809.85,0.00010958,2]
[407636120,1772580837642,-500.0,0.00010958,2]
[407636121,1772580837663,-500.0,0.00010958,2]
[407636122,1772580837684,-500.0,0.00010958,2]
[407636123,1772580837706,-500.0,0.00010958,2]
[407636124,1772580837730,-500.0,0.00010958,2]
[407636125,1772580837753,-172.0980165,0.00010958,2]
[407636126,1772580837777,-500.0,0.00010958,2]
[407636127,1772580837798,-500.0,0.00010958,2]
[407636128,1772580837822,-500.0,0.00010958,2]
[407636129,1772580837847,-500.0,0.00010958,2]
[407636130,1772580837870,-500.0,0.00010958,2]
[407636131,1772580837892,-1556.86,0.00010958,2]
[407636132,1772580837915,-1022.71,0.00010958,2]
[407636133,1772580837937,-579.26,0.00010958,2]
[407636134,1772580837960,-500.0,0.00010958,2]
[407636135,1772580837981,-500.0,0.00010958,2]
[407636136,1772580838006,-500.0,0.00010958,2]
[407636137,1772580838033,-753.25,0.00010958,2]
[407636138,1772580838059,-609.29,0.00010958,2]
[407636139,1772580838085,-500.0,0.00010958,2]
[407636140,1772580838108,-574.0,0.00010958,2]
[407636141,1772580838131,-500.0,0.00010958,2]
[407636142,1772580838156,-500.0,0.00010958,2]
[407636143,1772580838179,-500.0,0.00010958,2]
[407636144,1772580838204,-500.0,0.00010958,2]
[407636145,1772580838228,-500.0,0.00010958,2]
[407636146,1772580838249,-500.0,0.00010958,2]
[407636147,1772580838271,-500.0,0.00010958,2]
[407636148,1772580838295,-500.0,0.00010958,2]
[407636149,1772580838318,-597.18,0.00010958,2]
[407636150,1772580838340,-1021.8,0.00010958,2]
[407636151,1772580838362,-410.8100006,0.00010958,2]
[407636152,1772580838385,-454.02962793,0.00010958,2]
[407636153,1772580838407,-500.0,0.00010958,2]
[407636154,1772580838429,-500.0,0.00010958,2]
[407636155,1772580838452,-1285.08,0.00010958,2]
[407636156,1772580838475,-1989.54,0.00010958,2]
[407636157,1772580838498,-512.99,0.00010958,2]
[407636158,1772580838520,-506.07,0.00010958,2]
[407636159,1772580838541,-969.4,0.00010958,2]
[407636160,1772580838563,-500.0,0.00010958,2]
[407636161,1772580838585,-500.0,0.00010958,2]